[Event "DMP-III LIGA Senior PK 2020"]
[Site "Bystre"]
[Date "2020.07.10"]
[Round "4.18"]
[White "Zgoda, Aleksandra"]
[Black "Wolak, Julia"]
[Result "0-1"]
[ECO "B34"]
[WhiteElo "1203"]
[BlackElo "1516"]
[Annotator "NA RC"]
[PlyCount "138"]
[EventDate "2020.07.05"]
[EventType "team-tourn"]
[EventCountry "POL"]
[SourceTitle "playchess.com"]
[Source "ChessBase"]
[SourceQuality "1"]
[TimeControl "5400+30"]

1. e4 {[%emt 0:00:00]} c5 {[%emt 0:00:00]} 2. Nf3 {[%emt 0:00:00]} Nc6 {[%emt 0:00:00]} 3. d4 {[%emt 0:00:00]} cxd4 {[%emt 0:00:00]} 4. Nxd4 {[%emt 0:00:09]} Nf6 {[%emt 0:00:00]} 5. Nc3 {[%emt 0:00:24]} e5 {[%emt 0:00:03]} 6. Nb3 {[%emt 0:00:31]} Bb4 {[%emt 0:00:12]} 7. Bd3 {[%emt 0:00:59]} d5 {[%emt 0:01:09]} 8. exd5 {[%emt 0:05:46]} Bxc3+ {[%emt 0:00:27]} 9. bxc3 {[%emt 0:00:57]} Nxd5 {[%emt 0:00:55]} 10. c4 {[%emt 0:02:45]} Nb6 {[%emt 0:02:46]} 11. O-O {[%emt 0:03:13]} O-O {[%emt 0:00:49]} 12. a3 {[%emt 0:05:04]} Qh4 {[%emt 0:06:28]} 13. Qe2 {[%emt 0:05:31]} Be6 {[%emt 0:04:18]} 14. c5 {[%emt 0:08:15]} Nd7 {[%emt 0:00:39]} 15. Bb2 {[%emt 0:05:35]} Bxb3 {[%emt 0:12:01]} 16. cxb3 {[%emt 0:10:20]} Nxc5 {[%emt 0:00:49]} 17. Bc4 {[%emt 0:05:52]} Kh8 {[%emt 0:09:55]} 18. Bxe5 {[%emt 0:08:19]} Qe7 {[%emt 0:10:22]} 19. Bg3 {[%emt 0:06:13]} Qxe2 {[%emt 0:01:03]} 20. Bxe2 {[%emt 0:00:11]} Nxb3 {[%emt 0:00:25]} 21. Rad1 {[%emt 0:01:30]} Nbd4 {[%emt 0:04:18]} 22. Bc4 {[%emt 0:01:09]} Rad8 {[%emt 0:05:01]} 23. f3 {[%emt 0:02:11]} b5 {[%emt 0:02:38]} 24. Bd3 {[%emt 0:02:11]} b4 {[%emt 0:02:07]} 25. axb4 {[%emt 0:01:33]} Nxb4 {[%emt 0:00:16]} 26. Bc4 {[%emt 0:01:16]} f6 {[%emt 0:03:40]} 27. Ra1 {[%emt 0:02:59]} Nbc2 {[%emt 0:06:52]} 28. Rxa7 {[%emt 0:03:12]} Ne3 {[%emt 0:00:34]} 29. Rc1 {[%emt 0:01:17]} Rc8 {[%emt 0:00:41]} 30. Kf2 {[%emt 0:01:52]} Rxc4 {[%emt 0:01:18]} 31. Rxc4 {[%emt 0:01:33]} Nxc4 {[%emt 0:00:21]} 32. Ra4 {[%emt 0:00:50]} Rc8 {[%emt 0:00:16]} 33. h3 {[%emt 0:01:21]} Nf5 {[%emt 0:00:39]} 34. Bh2 {[%emt 0:00:27]} Nce3 {[%emt 0:01:33]} 35. g4 {[%emt 0:01:11]} Rc2+ {[%emt 0:00:15]} 36. Kg1 {[%emt 0:00:30]} Ne7 {[%emt 0:03:40]} 37. Re4 {[%emt 0:00:38]} N3d5 {[%emt 0:00:39]} 38. Bd6 {[%emt 0:00:28]} Ng8 {[%emt 0:01:03]} 39. h4 {[%emt 0:01:34]} g6 {[%emt 0:01:46]} 40. Rd4 {[%emt 0:02:13]} Nge7 {[%emt 0:01:26]} 41. Re4 {[%emt 0:00:45]} f5 {[%emt 0:02:11]} 42. gxf5 {[%emt 0:00:35]} Nxf5 {[%emt 0:00:17]} 43. Bh2 {[%emt 0:03:27]} Nde3 {[%emt 0:01:54]} 44. Bf4 {[%emt 0:01:22]} Nd5 {[%emt 0:03:08]} 45. Bh2 {[%emt 0:00:09]} Kg7 {[%emt 0:00:20]} 46. Rg4 {[%emt 0:00:50]} h5 {[%emt 0:00:47]} 47. Re4 {[%emt 0:00:16]} Kf7 {[%emt 0:00:55]} 48. Kh1 {[%emt 0:01:01]} Rf2 {[%emt 0:00:23]} 49. Kg1 {[%emt 0:00:29]} Rxf3 {[%emt 0:00:11]} 50. Kg2 {[%emt 0:00:10]} Rd3 {[%emt 0:01:41]} 51. Bg1 {[%emt 0:02:00]} Nde3+ {[%emt 0:00:45]} 52. Bxe3 {[%emt 0:00:25]} Rxe3 {[%emt 0:00:28]} 53. Rf4 {[%emt 0:00:30]} Kf6 {[%emt 0:00:28]} 54. Ra4 {[%emt 0:00:44]} Rg3+ {[%emt 0:01:28]} 55. Kh2 {[%emt 0:00:13]} Rd3 {[%emt 0:01:06]} 56. Rb4 {[%emt 0:00:24]} Rd4 {[%emt 0:00:30]} 57. Rxd4 {[%emt 0:00:34]} Nxd4 {[%emt 0:00:05]} 58. Kg3 {[%emt 0:00:09]} Kf5 {[%emt 0:00:05]} 59. Kh3 {[%emt 0:00:22]} Kf4 {[%emt 0:00:03]} 60. Kg2 {[%emt 0:00:23]} Kg4 {[%emt 0:00:06]} 61. Kh1 {[%emt 0:00:38]} Kxh4 {[%emt 0:00:07]} 62. Kh2 {[%emt 0:00:07]} Kg4 {[%emt 0:00:11]} 63. Kg2 {[%emt 0:00:42]} g5 {[%emt 0:00:09]} 64. Kh2 {[%emt 0:00:05]} Kf3 {[%emt 0:00:18]} 65. Kg1 {[%emt 0:00:10]} h4 {[%emt 0:00:20]} 66. Kh2 {[%emt 0:00:05]} g4 {[%emt 0:00:07]} 67. Kg1 {[%emt 0:00:03]} g3 {[%emt 0:00:12]} 68. Kh1 {[%emt 0:00:09]} g2+ {[%emt 0:00:07]} 69. Kg1 {[%emt 0:00:13]} Ne2+ {[%emt 0:00:03]} 0-1

[Event "DMP-III LIGA Senior PK 2020"]
[Site "Bystre"]
[Date "2020.07.10"]
[Round "4.23"]
[White "Mastej, Krzysztof"]
[Black "Dziura, Wiktor"]
[Result "1/2-1/2"]
[ECO "B76"]
[WhiteElo "1303"]
[BlackElo "1353"]
[Annotator "NA RC"]
[PlyCount "50"]
[EventDate "2020.07.05"]
[EventType "team-tourn"]
[EventCountry "POL"]
[SourceTitle "playchess.com"]
[Source "ChessBase"]
[SourceQuality "1"]
[TimeControl "5400+30"]

1. e4 {[%emt 0:00:00]} g6 {[%emt 0:00:00]} 2. d4 {[%emt 0:00:00]} Bg7 {[%emt 0:00:00]} 3. Nf3 {[%emt 0:00:25]} c5 {[%emt 0:00:00]} 4. Nc3 {[%emt 0:01:24]} cxd4 {[%emt 0:00:00]} 5. Nxd4 {[%emt 0:00:11]} d6 {[%emt 0:00:58]} 6. Be3 {[%emt 0:01:09]} Nf6 {[%emt 0:02:03]} 7. f3 {[%emt 0:01:13]} O-O {[%emt 0:00:25]} 8. Qd2 {[%emt 0:01:06]} Re8 {[%emt 0:00:10]} 9. g4 {[%emt 0:01:19]} Nc6 {[%emt 0:04:41]} 10. O-O-O {[%emt 0:01:17]} a6 {[%emt 0:03:39]} 11. h4 {[%emt 0:01:16]} Qc7 {[%emt 0:04:46]} 12. h5 {[%emt 0:01:41]} Ne5 {[%emt 0:03:52]} 13. hxg6 {[%emt 0:01:44]} fxg6 {[%emt 0:01:33]} 14. Bh6 {[%emt 0:03:14]} Bh8 {[%emt 0:01:00]} 15. Nd5 {[%emt 0:02:47]} Nxd5 {[%emt 0:03:22]} 16. exd5 {[%emt 0:00:30]} Qb6 {[%emt 0:01:25]} 17. c3 {[%emt 0:02:36]} Qc7 {[%emt 0:06:46]} 18. Bd3 {[%emt 0:07:12]} e6 {[%emt 0:02:20]} 19. dxe6 {[%emt 0:02:09]} Bxe6 {[%emt 0:00:41]} 20. Nxe6 {[%emt 0:01:10]} Rxe6 {[%emt 0:00:49]} 21. Qe2 {[%emt 0:03:52]} Nxd3+ {[%emt 0:05:16]} 22. Qxd3 {[%emt 0:00:19]} Bg7 {[%emt 0:02:17]} 23. Qd5 {[%emt 0:03:25]} Bxh6+ {[%emt 0:01:25]} 24. Rxh6 {[%emt 0:00:44]} Qf7 {[%emt 0:00:50]} 25. Rhh1 {[%emt 0:02:56]} Rae8 {[%emt 0:00:40]} 1/2-1/2

[Event "DMP-III LIGA Senior PK 2020"]
[Site "Bystre"]
[Date "2020.07.10"]
[Round "4.24"]
[White "Kruczek, Aleksandra"]
[Black "Uliasz, Katarzyna"]
[Result "0-1"]
[ECO "A48"]
[WhiteElo "1038"]
[BlackElo "1386"]
[Annotator "NA RC"]
[PlyCount "140"]
[EventDate "2020.07.05"]
[EventType "team-tourn"]
[EventCountry "POL"]
[SourceTitle "playchess.com"]
[Source "ChessBase"]
[SourceQuality "1"]
[TimeControl "5400+30"]

1. d4 {[%emt 0:00:00]} Nf6 {[%emt 0:00:00]} 2. Bf4 {[%emt 0:00:00]} g6 {[%emt 0:00:53]} 3. Nf3 {[%emt 0:00:19]} Bg7 {[%emt 0:00:08]} 4. e3 {[%emt 0:01:08]} O-O {[%emt 0:00:11]} 5. Bd3 {[%emt 0:00:48]} d6 {[%emt 0:01:03]} 6. h3 {[%emt 0:01:06]} Nbd7 {[%emt 0:00:59]} 7. Nbd2 {[%emt 0:01:24]} c5 {[%emt 0:03:31]} 8. c3 {[%emt 0:03:51]} a6 {[%emt 0:01:34]} 9. a4 {[%emt 0:07:11]} b6 {[%emt 0:06:58]} 10. b3 {[%emt 0:06:06]} Qc7 {[%emt 0:05:03]} 11. O-O {[%emt 0:04:01]} Bb7 {[%emt 0:06:36]} 12. e4 {[%emt 0:06:33]} h6 {[%emt 0:13:27]} 13. Rc1 {[%emt 0:08:17]} g5 {[%emt 0:05:07]} 14. Be3 {[%emt 0:09:35]} Rad8 {[%emt 0:07:38]} 15. c4 {[%emt 0:06:04]} cxd4 {[%emt 0:06:43]} 16. Nxd4 {[%emt 0:03:10]} Nc5 {[%emt 0:00:09]} 17. Qc2 {[%emt 0:03:10]} e6 {[%emt 0:02:27]} 18. f3 {[%emt 0:04:10]} Nxd3 {[%emt 0:00:18]} 19. Qxd3 {[%emt 0:00:26]} Nh5 {[%emt 0:02:38]} 20. Ne2 {[%emt 0:06:09]} e5 {[%emt 0:14:09]} 21. g3 {[%emt 0:02:28]} Bc8 {[%emt 0:01:12]} 22. Kh2 {[%emt 0:03:54]} Kh8 {[%emt 0:04:44]} 23. b4 {[%emt 0:01:44]} Qd7 {[%emt 0:00:29]} 24. g4 {[%emt 0:00:46]} Nf4 {[%emt 0:00:49]} 25. Nxf4 {[%emt 0:00:11]} gxf4 {[%emt 0:00:31]} 26. Bxb6 {[%emt 0:00:33]} Qxa4 {[%emt 0:02:40]} 27. Bxd8 {[%emt 0:02:34]} Rxd8 {[%emt 0:00:01]} 28. c5 {[%emt 0:01:08]} Qxb4 {[%emt 0:05:58]} 29. Rc4 {[%emt 0:02:28]} Qb8 {[%emt 0:02:36]} 30. c6 {[%emt 0:01:33]} Qc7 {[%emt 0:01:12]} 31. Rb1 {[%emt 0:02:05]} Bf6 {[%emt 0:00:40]} 32. Qb3 {[%emt 0:03:13]} Bh4 {[%emt 0:00:10]} 33. Qb8 {[%emt 0:01:08]} Bg3+ {[%emt 0:00:27]} 34. Kg2 {[%emt 0:00:17]} Qe7 {[%emt 0:02:21]} 35. c7 {[%emt 0:00:57]} Rg8 {[%emt 0:00:38]} 36. Nf1 {[%emt 0:02:56]} Qh4 {[%emt 0:01:09]} 37. Rc2 {[%emt 0:02:32]} Qg5 {[%emt 0:01:44]} 38. Rc6 {[%emt 0:01:15]} h5 {[%emt 0:01:01]} 39. Rxd6 {[%emt 0:01:58]} hxg4 {[%emt 0:00:49]} 40. fxg4 {[%emt 0:00:55]} Bh4 {[%emt 0:00:41]} 41. Rbb6 {[%emt 0:01:11]} f3+ {[%emt 0:00:21]} 42. Kh1 {[%emt 0:00:54]} Qc1 {[%emt 0:00:31]} 43. Rh6+ {[%emt 0:00:10]} Kg7 {[%emt 0:00:17]} 44. Rb1 {[%emt 0:00:11]} Qxh6 {[%emt 0:00:35]} 45. Qb2 {[%emt 0:00:24]} Bf6 {[%emt 0:00:38]} 46. Ng3 {[%emt 0:00:12]} Qxh3+ {[%emt 0:00:20]} 47. Qh2 {[%emt 0:00:13]} Qxh2+ {[%emt 0:00:42]} 48. Kxh2 {[%emt 0:00:01]} Rh8+ {[%emt 0:00:25]} 49. Kg1 {[%emt 0:00:05]} Bh4 {[%emt 0:00:38]} 50. Kf2 {[%emt 0:00:11]} Bxg4 {[%emt 0:00:32]} 51. Rb8 {[%emt 0:00:17]} Rc8 {[%emt 0:00:20]} 52. Rxc8 {[%emt 0:00:06]} Bxc8 {[%emt 0:00:06]} 53. Kxf3 {[%emt 0:00:05]} Bxg3 {[%emt 0:00:06]} 54. Kxg3 {[%emt 0:00:02]} a5 {[%emt 0:00:06]} 55. Kf3 {[%emt 0:00:08]} a4 {[%emt 0:00:03]} 56. Kg3 {[%emt 0:00:10]} a3 {[%emt 0:00:03]} 57. Kf3 {[%emt 0:00:08]} a2 {[%emt 0:00:03]} 58. Kg3 {[%emt 0:00:06]} a1=Q {[%emt 0:00:06]} 59. Kf2 {[%emt 0:00:16]} Qd4+ {[%emt 0:00:24]} 60. Kf3 {[%emt 0:00:13]} Qc3+ {[%emt 0:00:10]} 61. Ke2 {[%emt 0:00:05]} Qxc7 {[%emt 0:00:31]} 62. Ke3 {[%emt 0:00:10]} Qc3+ {[%emt 0:00:12]} 63. Ke2 {[%emt 0:00:07]} Ba6+ {[%emt 0:00:04]} 64. Kf2 {[%emt 0:00:25]} Qd4+ {[%emt 0:00:06]} 65. Kf3 {[%emt 0:00:18]} Qd3+ {[%emt 0:00:11]} 66. Kg4 {[%emt 0:00:14]} Qxe4+ {[%emt 0:00:08]} 67. Kg3 {[%emt 0:00:11]} Qf4+ {[%emt 0:00:06]} 68. Kg2 {[%emt 0:00:17]} Bb7+ {[%emt 0:00:10]} 69. Kg1 {[%emt 0:00:08]} Qg3+ {[%emt 0:00:12]} 70. Kf1 {[%emt 0:00:10]} Ba6# {[%emt 0:00:09]} 0-1

[Event "DMP-III LIGA Senior PK 2020"]
[Site "Bystre"]
[Date "2020.07.10"]
[Round "4.28"]
[White "Wojciechowski, Beniamin"]
[Black "Zajac, Karol"]
[Result "1-0"]
[ECO "C35"]
[WhiteElo "1835"]
[BlackElo "1652"]
[Annotator "NA RC"]
[PlyCount "123"]
[EventDate "2020.07.05"]
[EventType "team-tourn"]
[EventCountry "POL"]
[SourceTitle "playchess.com"]
[Source "ChessBase"]
[SourceQuality "1"]
[TimeControl "5400+30"]

1. e4 {[%emt 0:00:00]} e5 {[%emt 0:00:00]} 2. f4 {[%emt 0:00:00]} exf4 {[%emt 0:00:11]} 3. Nf3 {[%emt 0:00:00]} Be7 {[%emt 0:00:23]} 4. Bc4 {[%emt 0:00:00]} Nf6 {[%emt 0:00:11]} 5. d3 {[%emt 0:00:00]} d5 {[%emt 0:01:14]} 6. exd5 {[%emt 0:00:00]} Nxd5 {[%emt 0:00:37]} 7. O-O {[%emt 0:02:08]} O-O {[%emt 0:00:54]} (7... g5 $17) 8. Nc3 {[%emt 0:11:19]} Be6 {[%emt 0:13:13]} 9. Nxd5 {[%emt 0:10:09]} Bxd5 {[%emt 0:00:35]} 10. Bxd5 {[%emt 0:00:12]} Qxd5 {[%emt 0:00:08]} 11. Bxf4 {[%emt 0:00:19]} Nd7 $11 {[%emt 0:05:03]} 12. c4 {[%emt 0:10:36]} Qc6 {[%emt 0:12:19]} 13. Qc2 {[%emt 0:03:53]} Bf6 {[%emt 0:03:04]} 14. Rfd1 {[%emt 0:25:20]} Rfe8 {[%emt 0:03:04]} 15. d4 {[%emt 0:06:59]} h6 {[%emt 0:02:08]} 16. Bg3 {[%emt 0:00:31]} Re4 {[%emt 0:02:36]} 17. Rac1 {[%emt 0:05:18]} Rae8 {[%emt 0:00:31]} 18. Rd2 {[%emt 0:00:10]} Re3 {[%emt 0:05:08]} 19. b3 {[%emt 0:06:23]} Rxf3 {[%emt 0:02:22]} 20. gxf3 {[%emt 0:00:18]} Qxf3 {[%emt 0:00:22]} 21. Rf1 {[%emt 0:03:08]} Qe3+ {[%emt 0:03:34]} 22. Bf2 {[%emt 0:05:13]} Qg5+ {[%emt 0:04:06]} 23. Kh1 {[%emt 0:02:54]} Qh5 {[%emt 0:00:57]} 24. Qd1 {[%emt 0:01:54]} Qa5 {[%emt 0:06:23]} 25. Re2 {[%emt 0:01:04]} Rd8 {[%emt 0:00:43]} 26. Qe1 {[%emt 0:00:23]} Qa6 {[%emt 0:00:25]} 27. Re8+ {[%emt 0:00:14]} Rxe8 {[%emt 0:02:37]} 28. Qxe8+ {[%emt 0:00:05]} Nf8 {[%emt 0:00:07]} 29. Qe2 {[%emt 0:03:22]} Qd6 {[%emt 0:03:24]} 30. d5 {[%emt 0:01:04]} b6 {[%emt 0:01:08]} 31. Bg3 {[%emt 0:00:44]} Qd7 {[%emt 0:00:28]} 32. Qf3 {[%emt 0:00:29]} Ng6 {[%emt 0:01:49]} 33. Qf5 {[%emt 0:00:25]} Qd8 {[%emt 0:01:55]} 34. Re1 {[%emt 0:01:04]} Bg5 {[%emt 0:05:32]} 35. Rf1 {[%emt 0:00:28]} Bf6 {[%emt 0:00:37]} 36. Re1 {[%emt 0:00:05]} Bg5 {[%emt 0:00:08]} 37. Qe4 {[%emt 0:00:03]} Ne7 {[%emt 0:00:21]} 38. h4 {[%emt 0:00:24]} Bf6 {[%emt 0:00:13]} 39. h5 {[%emt 0:00:30]} Qd7 {[%emt 0:00:28]} 40. Kg2 {[%emt 0:00:09]} b5 {[%emt 0:02:49]} 41. Re2 {[%emt 0:02:29]} a6 {[%emt 0:01:05]} 42. Rd2 {[%emt 0:00:16]} Bg5 {[%emt 0:00:30]} 43. Rd3 {[%emt 0:00:23]} bxc4 {[%emt 0:01:21]} 44. bxc4 {[%emt 0:00:51]} Qa4 {[%emt 0:01:23]} 45. Bxc7 {[%emt 0:00:29]} Qxa2+ {[%emt 0:00:32]} 46. Kh3 {[%emt 0:00:23]} Qf2 {[%emt 0:01:22]} 47. Bg3 {[%emt 0:00:34]} Qf1+ {[%emt 0:00:30]} 48. Kh2 {[%emt 0:00:08]} f5 {[%emt 0:01:09]} 49. Rf3 {[%emt 0:00:37]} Qd1 {[%emt 0:00:38]} 50. Qd3 {[%emt 0:00:08]} Qc1 {[%emt 0:00:40]} 51. d6 {[%emt 0:00:37]} f4 {[%emt 0:00:20]} 52. Bf2 {[%emt 0:00:15]} Nc8 {[%emt 0:01:02]} 53. c5 {[%emt 0:00:53]} Na7 {[%emt 0:02:33]} 54. Qd5+ {[%emt 0:00:30]} Kh7 {[%emt 0:00:16]} 55. d7 {[%emt 0:00:11]} Nb5 {[%emt 0:00:32]} 56. Qf5+ {[%emt 0:01:01]} Kh8 {[%emt 0:00:31]} 57. Qxg5 {[%emt 0:00:12]} hxg5 {[%emt 0:00:38]} 58. d8=Q+ {[%emt 0:00:11]} Kh7 {[%emt 0:00:04]} 59. Qxg5 {[%emt 0:00:30]} Nc3 {[%emt 0:00:19]} 60. Qxf4 {[%emt 0:01:06]} Qb2 {[%emt 0:00:16]} 61. Qd4 {[%emt 0:00:30]} Qb8+ {[%emt 0:00:54]} 62. Rg3 {[%emt 0:00:09]} 1-0

[Event "DMP-III LIGA Senior PK 2020"]
[Site "Bystre"]
[Date "2020.07.10"]
[Round "4.29"]
[White "Materniak, Aleksander"]
[Black "Borukalo, Zdzislaw"]
[Result "1-0"]
[ECO "B32"]
[WhiteElo "1660"]
[BlackElo "1679"]
[Annotator "NA RC"]
[PlyCount "63"]
[EventDate "2020.07.05"]
[EventType "team-tourn"]
[EventCountry "POL"]
[SourceTitle "playchess.com"]
[Source "ChessBase"]
[SourceQuality "1"]
[TimeControl "5400+30"]

1. e4 {[%emt 0:00:00]} c5 {[%emt 0:00:00]} 2. Nf3 {[%emt 0:00:00]} Nc6 {[%emt 0:00:00]} 3. d4 {[%emt 0:00:00]} cxd4 {[%emt 0:00:00]} 4. Nxd4 {[%emt 0:00:00]} e5 {[%emt 0:00:02]} 5. Nb5 {[%emt 0:00:22]} d6 {[%emt 0:00:10]} 6. c4 {[%emt 0:01:24]} Be7 {[%emt 0:00:46]} 7. Be3 {[%emt 0:02:54]} a6 {[%emt 0:03:54]} 8. N5c3 {[%emt 0:00:46]} Nf6 {[%emt 0:02:13]} 9. Be2 {[%emt 0:03:06]} O-O {[%emt 0:00:55]} 10. O-O {[%emt 0:01:22]} Be6 {[%emt 0:02:00]} 11. Nd2 {[%emt 0:00:48]} Rb8 {[%emt 0:03:42]} 12. Rc1 {[%emt 0:03:06]} Re8 {[%emt 0:00:36]} 13. Nd5 {[%emt 0:00:43]} Nd7 {[%emt 0:08:41]} 14. b4 {[%emt 0:03:24]} Bg5 {[%emt 0:09:38]} 15. Qb3 {[%emt 0:12:15]} Bxe3 {[%emt 0:02:30]} 16. Qxe3 {[%emt 0:00:51]} Nd4 {[%emt 0:05:47]} 17. Bd3 {[%emt 0:00:59]} Rf8 {[%emt 0:14:32]} 18. f4 {[%emt 0:04:20]} f6 {[%emt 0:12:03]} 19. f5 {[%emt 0:01:37]} Bxd5 {[%emt 0:01:32]} 20. exd5 {[%emt 0:00:27]} Qb6 {[%emt 0:01:13]} 21. Rb1 {[%emt 0:09:34]} Rfc8 {[%emt 0:09:03]} 22. Kh1 {[%emt 0:00:47]} Qa7 {[%emt 0:06:25]} 23. Ne4 {[%emt 0:01:13]} Qb6 {[%emt 0:01:55]} 24. Rfc1 {[%emt 0:06:30]} Nxf5 {[%emt 0:02:57]} 25. Nxf6+ {[%emt 0:04:56]} gxf6 {[%emt 0:00:23]} 26. Qh3 {[%emt 0:00:56]} Ng7 {[%emt 0:05:19]} 27. Bxh7+ {[%emt 0:02:22]} Kf8 {[%emt 0:00:51]} 28. Qxd7 {[%emt 0:00:36]} Rc7 {[%emt 0:00:29]} 29. Qg4 {[%emt 0:03:02]} Rbc8 {[%emt 0:01:46]} 30. Rf1 {[%emt 0:08:07]} Rxc4 {[%emt 0:01:01]} 31. Rxf6+ {[%emt 0:00:30]} Ke8 {[%emt 0:00:17]} 32. Qg6+ {[%emt 0:00:42]} 1-0

[Event "DMP-III LIGA Senior PK 2020"]
[Site "Bystre"]
[Date "2020.07.10"]
[Round "4.30"]
[White "Krzysztynska, Anna"]
[Black "Tarsa, Joanna"]
[Result "1-0"]
[ECO "B22"]
[WhiteElo "1857"]
[BlackElo "1574"]
[Annotator "NA RC"]
[PlyCount "59"]
[EventDate "2020.07.05"]
[EventType "team-tourn"]
[EventCountry "POL"]
[SourceTitle "playchess.com"]
[Source "ChessBase"]
[SourceQuality "1"]
[TimeControl "5400+30"]

1. e4 {[%emt 0:00:00]} c5 {[%emt 0:00:03]} 2. c3 {[%emt 0:00:00]} Nc6 {[%emt 0:00:58]} 3. d4 {[%emt 0:00:09]} cxd4 {[%emt 0:00:36]} 4. cxd4 {[%emt 0:00:10]} d6 {[%emt 0:00:07]} 5. Nc3 {[%emt 0:00:50]} Nf6 {[%emt 0:00:34]} 6. Nf3 {[%emt 0:03:38]} (6. d5 $16) 6... g6 {[%emt 0:02:37]} 7. Bc4 {[%emt 0:06:47]} ({White should play} 7. d5 $16 Ne5 8. Nxe5 dxe5 9. Be3) 7... Bg7 {[%emt 0:06:36]} 8. O-O {[%emt 0:03:04]} O-O {[%emt 0:00:21]} 9. Bb3 {[%emt 0:00:55]} b6 {[%emt 0:04:55]} (9... Bg4 $15) 10. Be3 {[%emt 0:05:40]} Bb7 {[%emt 0:01:57]} 11. d5 {[%emt 0:05:02]} Nb8 {[%emt 0:05:21]} (11... Na5 $1 $11) 12. Nd4 $16 {[%emt 0:04:23]} Nbd7 {[%emt 0:04:55]} 13. Rc1 {[%emt 0:02:21]} Rc8 {[%emt 0:07:35]} 14. f3 {[%emt 0:02:17]} Ne5 {[%emt 0:05:26]} 15. Qd2 {[%emt 0:03:31]} Ba6 {[%emt 0:15:36]} 16. Ncb5 {[%emt 0:03:44]} Qd7 {[%emt 0:05:52]} 17. a4 {[%emt 0:04:49]} Rc5 {[%emt 0:07:20]} 18. Nc2 {[%emt 0:21:15]} Rcc8 {[%emt 0:02:58]} 19. Qe2 {[%emt 0:04:49]} Bxb5 {[%emt 0:02:48]} 20. axb5 {[%emt 0:02:20]} Qb7 {[%emt 0:01:11]} 21. Nd4 {[%emt 0:00:40]} Rxc1 {[%emt 0:00:29]} 22. Rxc1 {[%emt 0:00:05]} Rc8 {[%emt 0:00:22]} 23. Nc6 {[%emt 0:01:09]} Nxc6 {[%emt 0:01:35]} 24. bxc6 {[%emt 0:00:09]} Qc7 {[%emt 0:00:14]} 25. Qa6 {[%emt 0:06:35]} Ne8 {[%emt 0:02:15]} 26. Rc2 {[%emt 0:00:50]} Qb8 {[%emt 0:01:01]} 27. Bc4 {[%emt 0:01:56]} Rc7 {[%emt 0:01:46]} 28. b4 {[%emt 0:00:55]} Rc8 {[%emt 0:03:00]} 29. Qb7 {[%emt 0:03:38]} Nc7 {[%emt 0:04:30]} 30. Ra2 1-0

[Event "DMP-III LIGA Senior PK 2020"]
[Site "Bystre"]
[Date "2020.07.10"]
[Round "5.4"]
[White "Korys, Dawid"]
[Black "Wojciechowski, Beniamin"]
[Result "0-1"]
[ECO "D00"]
[WhiteElo "1343"]
[BlackElo "1835"]
[Annotator "NA"]
[PlyCount "94"]
[EventDate "2020.07.05"]
[EventType "team-tourn"]
[EventCountry "POL"]
[SourceTitle "playchess.com"]
[Source "ChessBase"]
[SourceQuality "1"]
[TimeControl "5400+30"]

{[%evp 10,93,19,39,32767,32767,32767,32767,32767,32767,32767,32767,0,32767,32767,32767,32767,32767,32767,32767,32767,32767,-20,-25,-26,32767,32767,-29,32767,32767,0,-9,32767,0,0,3,41,0,0,0,0,0,0,0,0,-28,0,-8,1,0,7,0,0,0,0,0,0,-455,-454,-670,-847,-5489,-3892,-29985,-29987,-5818,-6483,-1908,-2922,-12665,-2300,-5397,-6177,32767,32767,32767,-29985,-29986,-29988,-29989,-29983,-29987,-29990,-29985,-29991,-29991]} 1. d4 {[%emt 0:00:00]} d5 {[%emt 0:00:00]} 2. Bf4 {[%emt 0:00:07]} Bf5 {[%emt 0:00:05]} 3. e3 {[%emt 0:00:30]} e6 {[%emt 0:00:04]} 4. c4 {[%emt 0:00:12]} c6 {[%emt 0:00:15]} 5. Nc3 {[%emt 0:00:15]} Nd7 {[%emt 0:02:01]} 6. Nf3 {[%emt 0:00:08]} Ngf6 {[%emt 0:00:14]} 7. Be2 {[%emt 0:00:26]} Be7 {[%emt 0:02:10] D02: 1 d4 d5 2 Nf3 sidelines, including 2...Nf6 3 g3 and 2...Nf6 3 Bf4.} 8. Ne5 {[%emt 0:00:33]} Nxe5 {[%emt 0:01:23]} 9. Bxe5 {[%emt 0:00:07]} O-O {[%emt 0:00:54]} 10. O-O {[%emt 0:03:09]} Re8 {[%emt 0:02:02]} 11. cxd5 exd5 12. Bd3 {[%emt 0:04:25]} Qd7 {[%emt 0:10:26] [#]} 13. Bxf5 $146 {[%emt 0:01:48]} ({Predecessor:} 13. Qc2 Bxd3 14. Qxd3 Ng4 15. Bf4 Bd6 16. h3 Bxf4 17. exf4 Nf6 18. Rae1 Qd6 19. g3 {½-½ (38) Rupel,D (2113)-Chen,H Redmond 2008}) 13... Qxf5 {[%emt 0:00:06]} 14. Bxf6 {[%emt 0:00:07]} Bxf6 {[%emt 0:00:24]} 15. Ne2 {[%emt 0:00:50]} Rad8 {[%emt 0:02:34]} 16. a4 {[%emt 0:01:03]} Be7 {[%emt 0:00:49]} 17. Qd2 {[%emt 0:02:06]} Bd6 {[%emt 0:00:39]} 18. b4 {[%emt 0:01:41]} Re6 {[%emt 0:02:09]} 19. b5 {[%emt 0:02:30]} Rg6 {[%emt 0:04:47]} 20. bxc6 {[%emt 0:07:20]} bxc6 {[%emt 0:00:42]} 21. Rac1 {[%emt 0:02:08]} Qg4 {[%emt 0:30:57]} 22. Ng3 {[%emt 0:02:49]} Bb8 {[%emt 0:07:01]} 23. Qe2 {[%emt 0:01:56]} Qh4 {[%emt 0:00:31]} 24. f4 {[%emt 0:13:01]} Re8 {[%emt 0:04:18]} 25. Nf5 {[%emt 0:13:22]} Qf6 {[%emt 0:06:31]} 26. Qd3 {[%emt 0:02:32]} Qd8 {[%emt 0:07:28]} 27. Rc5 {[%emt 0:06:00]} Rge6 {[%emt 0:01:30]} 28. Rf3 {[%emt 0:05:31]} g6 {[%emt 0:02:25]} 29. Nh6+ {[%emt 0:01:56]} Kg7 {[%emt 0:05:09]} 30. Ng4 {[%emt 0:00:05]} f6 {[%emt 0:03:32]} (30... h5 $5 31. Ne5 $8 Bxe5 32. dxe5 (32. fxe5 f6 $11) 32... Qb6 $11) 31. f5 {[%emt 0:03:51]} Re4 {[%emt 0:01:38]} 32. Nf2 {[%emt 0:03:35]} Qe7 {[%emt 0:01:11]} 33. Nxe4 $4 {[%emt 0:01:27]} (33. Rc3 $11 {and White is okay.}) 33... dxe4 {[%emt 0:00:07]} 34. Qc4 {[%emt 0:01:52]} (34. Qd1 $142 exf3 {[%mdl 64] Discovered Attack} 35. Qxf3) 34... exf3 {[%emt 0:00:10]} 35. Qe6 {[%emt 0:00:51] [#]} Qc7 $1 {[%emt 0:02:32]} 36. g3 {[%emt 0:01:39]} Rxe6 {[%emt 0:00:09]} 37. fxe6 {[%emt 0:00:06]} Qd6 $19 {[%emt 0:00:30]} (37... Qb6 $142 38. Kf2 Qb2+ 39. Kxf3 Qxh2 40. g4 Qg3+ 41. Ke4 Qxg4+ {[%mdl 64] Double Attack} 42. Kd3 Qxe6 43. Rc2 Bg3 44. Rb2 Qf5+ 45. Kc3 Be1+ 46. Kc4 Qa5 47. Kb3 Qc3+ 48. Ka2 Qxe3 49. d5 cxd5 50. a5 Bc3 51. Rb1 Qf2+ 52. Ka3 Qc5+ {[%mdl 64] Double Attack} 53. Ka4 Qxa5+ 54. Kb3 Be5 55. Rc1 Qb5+ 56. Kc2 Qe2+ 57. Kb3 Qb2+ 58. Ka4 Qxc1 59. Kb4 Qc3+ 60. Kb5 Qc4+ 61. Ka5 Bc7#) 38. Kf2 {[%emt 0:00:16]} Qxe6 {[%emt 0:00:13]} 39. Kxf3 {[%emt 0:00:17]} f5 {[%emt 0:00:17]} 40. Ke2 {[%emt 0:00:52]} Qa2+ {[%emt 0:00:53]} 41. Kd3 {[%emt 0:00:05]} Qxa4 {[%emt 0:00:08]} 42. Kc3 {[%emt 0:00:26]} a5 {[%emt 0:00:37]} 43. Kb2 {[%emt 0:00:18]} Bd6 {[%emt 0:00:22]} 44. Rc3 {[%emt 0:00:05] [#]} c5 $1 {[%emt 0:00:20]} 45. Rb3 {[%emt 0:00:07]} c4 {[%emt 0:00:15]} 46. Rb7+ {[%emt 0:00:13]} Kh6 {[%emt 0:00:18]} 47. Kc3 {[%emt 0:01:02]} Bb4+ {[%emt 0:00:07]} 0-1